Cogmind - Beta 14 @@@ ROGUE MODE // 2024.10.02 @ 16:04:05 Player: Dazz Result: Core destroyed Performance ------------- Evolutions (0) 0 Regions Visited (2) 400 Robots Destroyed (15) 75 Value Destroyed (429) 429 Prototype IDs (0) 0 Alien Tech Used (0) 0 Bonus (0) 0 TOTAL SCORE: 904 Bonus ------- None Cogmind --------- Core Integrity 0/250 Matter 283/300 Energy 81/100 System Corruption 2% Temperature Critical (531) Movement Core (200) Ox3 Location -10/Mines Parts ------- > --- POWER (1) -------- (None) > --- PROPULSION (2) --- (None) > --- UTILITY (2) ------ Small Storage Unit Seismic Detector > --- WEAPON (2) ------- Beamcaster Light Assault Rifle > --- INVENTORY (8) ---- Ion Engine Sensor Array Seismic Detector Assault Rifle Heavy Assault Rifle Light Cannon Mining Laser Peak State ------------ > --- POWER ------------ Light Angular Momentum Engine > --- PROPULSION ------- Wheel Wheel > --- UTILITY ---------- Small Storage Unit Seismic Detector > --- WEAPON ----------- Beamcaster Light Assault Rifle > --- INVENTORY -------- Ion Engine Sensor Array Seismic Detector Assault Rifle Heavy Assault Rifle Light Cannon Mining Laser [Rating: 15] Favorites ----------- Power Ion Engine Engine Ion Engine Propulsion Wheel Wheel Wheel Utility Small Storage Unit Device Seismic Detector Storage Small Storage Unit Weapon Light Assault Rifle Energy Gun Beamcaster Ballistic Gun Light Assault Rifle Build | -11 -10 -10 ------- Run | Yrd Mat Min Slots Evolved . | . . . Power . | . . . Propulsion . | . . . Utility . | . . . Weapon . | . . . Parts Attached 11 | 7 2 2 Power 2 | 1 . 1 Engine 2 | 1 . 1 Core . | . . . Reactor . | . . . Propulsion 3 | 2 1 . Treads . | . . . Leg . | . . . Wheel 3 | 2 1 . Hover . | . . . Flight . | . . . Utility 2 | 2 . . Device 1 | 1 . . Storage 1 | 1 . . Processor . | . . . Hackware . | . . . Protection . | . . . Artifact . | . . . Weapon 4 | 2 1 1 Energy Gun 1 | . . 1 Energy Cannon . | . . . Ballistic Gun 3 | 2 1 . Ballistic Cannon . | . . . Launcher . | . . . Special Weapon . | . . . Impact Weapon . | . . . Slashing Weapon . | . . . Piercing Weapon . | . . . Special Melee Weapon . | . . . Unidentified Prototypes . | . . . Parts Lost 5 | . 2 3 Power 1 | . . 1 Propulsion 3 | . 1 2 Utility . | . . . Weapon 1 | . 1 . Highest Loss Streak 3 | . 1 3 To Critical Strikes . | . . . Average Slot Usage (%) 98 | . 99 93 Engine 13 | . 14 13 Wheel 26 | . 27 22 Device 14 | . 14 14 Storage 14 | . 14 14 Energy Gun 1 | . . 7 Ballistic Gun 26 | . 27 21 Peak Build Rating 15 | 7 7 15 Average Rating 7 | 4 6 10 On Entrance 4 | . 7 7 Naked Turns . | . . . Heaviest Build 21 | 14 14 21 Greatest Support 20 | 20 20 20 Greatest Overweight (x) 3 | . 1 3 Average Overweight (x) . | . . . Largest Inventory Capacity 8 | 8 8 8 Average Capacity 7 | 7 8 8 Most Carried 8 | 5 8 8 Average Carried 6 | 1 6 6 Final Capacity 8 | 8 8 8 Final Carried 7 | 1 6 7 Class Distribution -------------------- 95% | Mutant 4% | Scavenger-Mutant Dominant Class ---------------- Mutant | -10/Materials Mutant | -10/Mines Resources | -11 -10 -10 ----------- Run | Yrd Mat Min Matter Collected 469 | 181 288 . Remotely . | . . . Salvage Created 531 | 20 425 86 Parts 27 | 3 24 . Haulers Intercepted . | . . . Recyclers Shooed . | . . . Parts Field Recycled . | . . . Retrieved Matter . | . . . Parts Self-Destructed . | . . . Prevented . | . . . Kills | -11 -10 -10 ------- Run | Yrd Mat Min Combat Hostiles Destroyed 11 | . 9 2 Guns 11 | . 9 2 Classes Destroyed 5 | 1 4 . Worker 1 | . 1 . Tunneler 1 | 1 . . Watcher 2 | . 2 . Swarmer 1 | . 1 . Grunt 10 | . 8 2 Best Kill Streak 4 | 1 4 2 Combat Bots Only 3 | . 3 2 Max Kills in Single Turn 1 | 1 1 1 Gunslinging . | . . . Exploded . | . . . Melee . | . . . Uniques/NPCs Destroyed . | . . . Combat | -11 -10 -10 -------- Run | Yrd Mat Min Hostile Shots Fired 83 | . 57 26 Missed 18 | . 13 5 Damage Taken 800 | . 486 314 Core 289 | . 161 128 Absorbed by Shields . | . . . Core Remaining (%) 100 | 100 . . Volleys Fired 60 | 2 46 12 Largest 2 | 2 2 2 Hottest 95 | 40 40 95 Shots Fired 119 | 4 91 24 Gun 119 | 4 91 24 Cannon . | . . . Launcher . | . . . Special . | . . . Kinetic 107 | 4 91 12 Thermal 12 | . . 12 Explosive . | . . . Electromagnetic . | . . . Robot Hit Streak 14 | 2 14 5 Robot Miss Streak 4 | 1 4 4 Penetration Max . | . . . Secondary Targets . | . . . Shots Hit Robots 77 | 3 62 12 Core Hits 29 | 2 23 4 Critical Kills . | . . . Critical Parts Destroyed 1 | . 1 . Critical Strikes 1 | . 1 . Destroy 1 | . 1 . Melee Attacks . | . . . Impact . | . . . Slashing . | . . . Piercing . | . . . Sneak Attacks . | . . . Combat Hostiles . | . . . Follow-up Attacks . | . . . Damage Inflicted 900 | 27 661 212 Guns 900 | 27 661 212 Cannons . | . . . Explosions . | . . . Melee . | . . . Ramming . | . . . Kinetic 746 | 27 661 58 Thermal 154 | . . 154 Explosive . | . . . Electromagnetic . | . . . Impact . | . . . Slashing . | . . . Piercing . | . . . Highest Corruption 2 | . 2 2 Average Corruption 2 | . 2 2 Corruption Purged . | . . . Corruption Blocked . | . . . Effects 1 | . . 1 Data Loss (minor) 1 | . . 1 Overload Shots . | . . . Overflow Damage . | . . . Projectiles . | . . . Explosions . | . . . Melee . | . . . Knockbacks . | . . . Impact . | . . . Kinetic . | . . . Secondary . | . . . Self-Inflicted Damage . | . . . Shots . | . . . Rammed . | . . . Targets Rammed . | . . . Kicked . | . . . Crushed . | . . . Highest Temperature 581 | . 18 581 Average Temperature 152 | . 8 300 Received Heat Transfer 372 | . 219 153 Effects 3 | . . 3 Interference 1 | . . 1 Short Circuit 1 | . . 1 Damage (core) 1 | . . 1 Siege Activations . | . . . Robots Corrupted . | . . . Combat Hostiles . | . . . Parts Fried . | . . . Impact Corruptions . | . . . Robots Melted . | . . . Combat Hostiles . | . . . Parts Melted 2 | . . 2 Heat Transferred 259 | . . 259 Parts Sabotaged . | . . . Parts Stolen . | . . . Parts Stripped . | . . . Power Chain Reactions . | . . . Alert | -11 -10 -10 ------- Run | Yrd Mat Min Peak Influence 171 | 5 171 50 Initial 23 | . 3 23 Average 42 | 1 48 20 Maximum Alert Level . | . . . Low Security (%) 100 | 100 100 100 Level 1 . | . . . Level 2 . | . . . Level 3 . | . . . Level 4 . | . . . Level 5 . | . . . High Security . | . . . Max Security . | . . . Squads Dispatched 1 | . 1 . Investigation 1 | . 1 . Extermination . | . . . Reinforcement . | . . . Assault . | . . . Garrison . | . . . Intercept . | . . . Searches Triggered . | . . . Construction Impeded . | . . . Haulers Reinforced . | . . . Active Scanning Responses . | . . . Cargo Convoy Interrupts . | . . . Stealth | -11 -10 -10 --------- Run | Yrd Mat Min Distress Signals 1 | . 1 . Communications Jammed . | . . . Distress Signals . | . . . Times Spotted 20 | . 18 2 Peak Tracking Total 3 | . 3 2 Tactical Retreats 2 | . 2 . Traps | -11 -10 -10 ------- Run | Yrd Mat Min Traps Triggered 2 | . 2 . Indirectly . | . . . Trap Hack Attempts . | . . . Triggered . | . . . Disarmed . | . . . Reprogrammed . | . . . Reused . | . . . Traps Extracted . | . . . Installed . | . . . Triggered . | . . . Machines | -11 -10 -10 ---------- Run | Yrd Mat Min Machines Disabled . | . . . Max in Single Turn . | . . . Machines Repaired . | . . . Machines Dismantled . | . . . Machines Sabotaged . | . . . Overloaded Fab Kills . | . . . Hacking | -11 -10 -10 --------- Run | Yrd Mat Min Machines Accessed 10 | . 10 . Terminals 8 | . 8 . Fabricators . | . . . Repair Stations . | . . . Recycling Units 2 | . 2 . Scanalyzers . | . . . Garrison Access . | . . . Total Hacks 31 | . 31 . Successful 20 | . 20 . Failed 11 | . 11 . Catastrophic 1 | . 1 . Database Lockouts . | . . . Manual 21 | . 21 . Terminals 25 | . 25 . Fabricators . | . . . Repair Stations . | . . . Recycling Units 6 | . 6 . Scanalyzers . | . . . Garrison Access . | . . . Terminal Hacks 7 | . 7 . Record 2 | . 2 . Robot Analysis 1 | . 1 . Branch Access Points 1 | . 1 . Terminal Index 1 | . 1 . Alert Level 1 | . 1 . Zone Layout 1 | . 1 . Fabricator Hacks . | . . . Repair Station Hacks . | . . . Recycling Unit Hacks 2 | . 2 . Report Inventory 2 | . 2 . Scanalyzer . | . . . Garrison Access Hacks . | . . . Unauthorized Hacks 11 | . 11 . Terminals 9 | . 9 . Botnet 3 | . 3 . Skim 6 | . 6 . Fabricators . | . . . Repair Stations . | . . . Recycling Units 2 | . 2 . Reject 1 | . 1 . Mask 1 | . 1 . Scanalyzers . | . . . Garrison Access . | . . . Data Cores Recovered . | . . . Used . | . . . Hacking Detections 6 | . 6 . Full Trace Events 1 | . 1 . Feedback Events . | . . . Feedback Blocked . | . . . Robot Schematics Acquired . | . . . Robots Built . | . . . Authchips . | . . . Time . | . . . Total Robot Build Rating . | . . . Part Schematics Acquired . | . . . Parts Built . | . . . Authchips . | . . . Time . | . . . Total Part Build Rating . | . . . Parts Repaired . | . . . Time . | . . . Parts Recycled . | . . . Recycled Matter . | . . . Retrieved Matter . | . . . Retrieved Components . | . . . Parts Scanalyzed . | . . . Part Schematics Acquired . | . . . Parts Damaged . | . . . Bothacking | -11 -10 -10 ------------ Run | Yrd Mat Min Used RIF Installer . | . . . Robots Hacked . | . . . Non-combat . | . . . Combat . | . . . Robot Hacks Applied . | . . . Relay Couplers Released . | . . . Fabnet Peak Effective % . | . . . Robots Rewired . | . . . Allies Hacked . | . . . Hacks Repelled . | . . . Allies | -11 -10 -10 -------- Run | Yrd Mat Min Total Allies . | . . . Largest Group . | . . . Highest-Rated Group . | . . . Highest-Rated Ally . | . . . Total Orders . | . . . Ally Attacks . | . . . Total Damage . | . . . Kills . | . . . Allies Corrupted . | . . . Allies Melted . | . . . Intel | -11 -10 -10 ------- Run | Yrd Mat Min Robot Analysis Total 1 | . 1 . Derelict Logs Recovered 1 | . . 1 Drone Launches . | . . . Drone Recoveries . | . . . Exploration | -11 -10 -10 ------------- Run | Yrd Mat Min Turns Passed 1112 | 52 903 157 Spaces Moved 976 | 44 805 127 Core 14 | 13 . 1 Treads . | . . . Legs . | . . . Wheels 962 | 31 805 126 Hover . | . . . Flight . | . . . Fastest Speed 50 | 50 80 80 Average Speed 80 | 71 80 87 Slowest Speed 200 | 80 95 200 Overloaded Moves . | . . . Propulsion Burnouts . | . . . Robots Hopped . | . . . Cave-ins Triggered . | . . . Exploration Rate (%) 44 | 4 98 31 Regions Visited 2 Branch Regions 1 Pre-discovered Areas 1 | . 1 . Known Exits Taken 1 | . 1 . Unknown Exits Taken 1 | 1 . . Scrap Searched . | . . . Spaces Dug . | . . . Terrain Destroyed . | . . . Melee . | . . . Projectile . | . . . AOE . | . . . Terrain Rammed . | . . . Walls Destroyed . | . . . Machines Disabled . | . . . Actions | -11 -10 -10 --------- Run | Yrd Mat Min Total 1195 | 60 981 154 Wait 128 | . 120 8 Move 974 | 43 804 127 Hop . | . . . Pick Up 19 | 8 8 3 Fast Attach . | . . . Attach 10 | 7 2 1 Detach . | . . . Swap 1 | . . 1 Drop 3 | . 1 2 Fire 60 | 2 46 12 Melee . | . . . Ram . | . . . Kick . | . . . Crush . | . . . Escape Stasis . | . . . Rewire . | . . . Trap . | . . . Miscellaneous . | . . . Route ------- -11/Scrapyard -10/Materials (discovered 5 exits: *Mat x3 / *Min / Sub) -10/Mines (discovered 2 exits: Mat / Sub) History --------- Turn | Location | Event 30 | -11/Scrapyard | Discovered new exit (range 12) 53 | -11/Scrapyard | Entered Materials 138 | -10/Materials | Discovered new exit (range 16) 313 | -10/Materials | Build established: Mutant 424 | -10/Materials | Discovered new exit (range 10) 537 | -10/Materials | Discovered new exit (range 15) 688 | -10/Materials | Identified exit to Mines 700 | -10/Materials | Loaded intel: 29 non-interactive machine locations 759 | -10/Materials | Learned location of Mines (-9) 804 | -10/Materials | Core integrity fell below 50% 807 | -10/Materials | Identified exit to Subcaves 845 | -10/Materials | Learned location of 2 exits from Materials 895 | -10/Materials | Loaded intel: 8 terminal locations 955 | -10/Materials | Learned location of 2 exits from Mines 956 | -10/Materials | Entered Mines 957 | -10/Mines | Identified exit to Materials 966 | -10/Mines | Learned Materials terminal intel 1003 | -10/Mines | Joined a pair of Derelicts in attacking an 0b10 outpost 1096 | -10/Mines | Core integrity fell below 20% 1114 | -10/Mines | Core destroyed Last Messages --------------- 01046_ K-01 Serf collects debris. 01052_ System corrupted: Component data lost. 01077_ K-01 Serf collects debris. 01080_ Wheel destroyed. 01082_ K-01 Serf collects debris. 01087_ Wheel destroyed. 01090_ K-01 Serf collects debris. 01102_ Lgt. Angular Momentum Engine destroyed. 01104_ Overheating: System interference. 01104_ Seismic Detector temporarily disabled. 01104_ K-01 Serf collects debris. 01105_ Heat Sink melted. 01105_ G-34 Mercenary destroyed. 01108_ K-01 Serf collects debris. 01110_ Lgt. Nuclear Core melted. 01110_ G-47 Trooper destroyed. 01111_ Beamcaster broken. 01111_ Overheating: Short circuit. 01113_ K-01 Serf collects debris. 01114_ Overheating: Core damaged (-40). Map ----- +----------------------------------------------------+ | #??????# #??????????????????????????? | | [ #?????## #??????????????????????????? | | #???### #?????>?????????????????????? | | #??## #????????????????????????????? | | # #### #??####???????????????????????? | | # #??? ##??????????????????????? | | # """ ##??# #??????????????????????? | | # #### """ #### #??????????????????????? | | ##########??## """ ## #####??????????????????? | | ????????????## #??????????????????? | | ???????????## ###### #??????????????????? | | ???????????# ## ##????# #??????????????????? | | ??????????## ######?????# #??????????????????? | | ?????????## ##??????????# #??????????????????? | | ########## #???????????# #??????????????????? | | # #?######????# #??????????????????? | | ### #???# #??????????????????? | | ###### #? ##?# #??????????????????? | | ###### #?? #?# #??????????????????? | | ## ##??? #?# #??????????????????? | | """ ### ###?????# #?# #??????????????????? | | """ #?## ##????????# #?# #??????????????????? | | """ #??# ##????????## ### #??????????????????? | | #??## #?????##### #??????????????????? | | """ #???# ????## ## #??????????????????? | | """ #???# ???# k @### #??????????????????? | | """ #???## ?# %%##?# #??????????????????? | | #????# #??# #??????????????????? | | #####????## ?? ??????????????????? | | ??????????### ##??###??????????????????? | | ????????????# # #?????????????????????????? | | ??????????? ??## #??????????????????????????? | | ????????????????## #???????????????????????????? | | ?????????????????####????????????????????????????? | | ?????????????????????????????????????????????????? | | ?????????????????????????????????????????????????? | | ?????????????????????????????????????????????????? | | ?????????????????????????????????????????????????? | | ?????????????????????????????????????????????????? | | ?????????????????????????????????????????????????? | | ?????????????????????????????????????????????????? | | ?????????????????????????????????????????????????? | | ?????????????????????????????????????????????????? | | ?????????????????????????????????????????????????? | | ?????????????????????????????????????????????????? | | ?????????????????????????????????????????????????? | | ?????????????????????????????????????????????????? | | ?????????????????????????????????????????????????? | | ?????????????????????????????????????????????????? | | ?????????????????????????????????????????????????? | +----------------------------------------------------+ Best States ------------- Heat Dissipation 25 Energy Generation 18 Energy Capacity 250 Matter Stores 300 Matter Capacity 300 Sight Range 16 Terrain Scan Density 10 Evasion (%) 50 Item Schematics ----------------- None Robot Schematics ------------------ None Fabricated ------------ Nothing Alien Tech Used ----------------- None Achievements -------------- Quantum Hacking Challenges ------------ None Game ------ Seed VampiricReflectiveNetwork Manual? 0 Play Time 00:21:38 Cumulative 11.4 hours Start 2024.10.02 @ 15:42:21 End 2024.10.02 @ 16:04:05 Sessions 1 Manual Loads 0 Difficulty Rogue Special Mode None Game No. 29 Rogue 29 Adventurer 0 Explorer 0 Win Type - Total 0 Types 0/0/0/0/0/0/0/0/0 Lore% 11 Gallery% 10 Achievement% 14 Wizard Run 0 Options --------- Layout 1 ASCII 0 Keyboard 1 Movement Numpad Keybinds 0 Fullscreen 2 Font 32/SmallcapsGlow Map View 50x35 Zoom Use 0% Tactical HUD 1 Map Filters NONE Filters NONE Steam 1 RUN: eadee1a9-d7ac-41b7-8d2b-8e2e36b8fdeb